Workbook

Sheet SCR TCI
B1: Table 3-8. UAF - Capital Costs for SCR on
B2: the Mid-sized Diesel Boiler (EU ID 3)
J3: Shaded cells indicate user inputs.
B4: Total Capital Investment Determination - SCR
D5: UAF - PM2.5 BACT Analysis (EU ID 3 - Zurn Boiler)
B8: Capital Costs
B9: DIRECT COSTS | E9: QTY | F9: UNIT | G9: UNIT COST | H9: TOTAL MATERIALS COST | I9: TOTAL LABOR COST
B11: (1) | C11: Purchased equipment and material costs
C12: (a) | D12: Basic equipment
D13: Total SCR System | E13: 1 | F13: EA | G13: 850000 | H13: =E13*G13 -> 850000
D14: (per Fuel Tech) | J14: TOTAL = | K14: =SUM(H13:H13) -> 850000
C15: (b) | D15: Instrumentation
D16: NOx CEMs System | E16: 1 | F16: EA | G16: 50000 | H16: =E16*G16 -> 50000
D17: NOx CEMS Certification Testing | E17: 1 | F17: EA | G17: 10000 | H17: =E17*G17 -> 10000
J18: TOTAL = | K18: =SUM(H16:H17) -> 60000
C19: (c) | D19: Freight
D20: SCR Freight | E20: 1 | G20: 20000
J21: TOTAL = | K21: =G20 -> 20000
C22: (d) | D22: Labor
D23: Labor - shop fab | F23: MH | I23: Included above
D24: Labor - onsite | F24: MH | I24: Included above
J25: TOTAL = | K25: =SUM(I23:I24) -> 0
C26: (e ) | D26: Startup Spares
D27: Startup Spare Parts for SCR | E27: 0.005 | F27: % | H27: =E27*G13 -> 4250
J28: TOTAL = | K28: =SUM(H27) -> 4250
C29: (f) | D29: Vendor representatives fees
D30: Fab Site Vendor Representatives fees (enter no. of days and daily rate) | F30: Days | I30: Included above
D31: Onsite Vendor Representatives fees (enter no. of days and daily rate) | F31: Days | I31: Included above
J32: TOTAL = | K32: =SUM(I30:I31) -> 0
B33: Purchased Equipment and Material Cost (PEMC) | E33: All above costs included in vendor scope. | J33: PEMC = | K33: =K14+K18+K21+K25+K28+K32 -> 934250
B35: (2) | C35: Direct Installation Costs
C36: (a) | D36: Concrete | F36: CY | H36: =E36*G36 -> 0 | K36: =H36+I36 -> 0
C37: (b) | D37: Piling | F37: TON | H37: =E37*G37 -> 0 | K37: =H37+I37 -> 0
C38: (c) | D38: Structural steel | F38: TON | H38: 0 | K38: 0
C39: (d) | D39: Electrical | F39: LOT | H39: 0 | K39: 0
C40: (e ) | D40: Painting | F40: SF | H40: 0 | K40: 0
C41: (f) | D41: Insulation | F41: LOT | H41: 0 | K41: 0
C42: (g) | D42: Abovegrade piping | F42: LF | H42: 0 | K42: 0
C43: (h) | D43: Functional Checkouts
D44: Functional Checkout - fab site, enter %: | F44: % offsite fab labor | K44: 0
D45: Functional Checkout - onsite, enter % | F45: % onsite fab labor | K45: 0
D46: Contractor Commissioning, enter %: | F46: % of equipment total cost | I46: =G46*K14 -> 0 | K46: 0
B47: Direct Installation Costs (DIC) - 2 x SCR Equipment Capital | J47: DIC = | K47: =2*K14 -> 1700000
B50: Total Direct Costs (TDC) | J50: TDC = (PEMC) + (DIC) = | K50: =K33+K47 -> 2634250
B53: INDIRECT COSTS
B54: (3) | C54: Engineering, Procurement & Construction Support Services | F54: % TDC | I54: =E54*K50 -> 0 | K54: Included in PEMC above.
B55: (4) | C55: Performance tests | E55: 1 | F55: EA | G55: 10000 | I55: =E55*G55 -> 10000
B56: Total Indirect Costs (TIC) | J56: TIC = | K56: =SUM(I54:I55) -> 10000
B59: MANAGEMENT AND CONTINGENCY COSTS
B60: (5) | C60: Unit Operator Costs | F60: % TDC | K60: Excluded in this estimate.
B61: (6) | C61: Contingency | E61: 0.3 | F61: % TDC | I61: =E61*K50 -> 790275
B62: Total Management and Contingency Costs (TM&CC) | J62: TM & CC = | K62: =SUM(I60:I61) -> 790275
B65: TOTAL CAPITAL INVESTMENT (TCI) | J65: TCI = (TDC)+(TIC)+(TM&CC) = | K65: =K50+K56+K62 -> 3434525

Sheet SCR CE
B1: Table 3-9. UAF - Annualized Costs for SCR on
B2: the Mid-sized Diesel Boiler (EU ID 3)
I3: Shaded cells indicate user inputs
B4: Cost Effectiveness Determination - SCR
D5: UAF - PM2.5 BACT Analysis (EU ID 3 - Zurn Boiler)
B8: Annualized Costs
B9: DIRECT ANNUAL COSTS | E9: QTY | F9: UNIT | G9: UNIT COST | H9: TOTAL MATERIALS COST | I9: TOTAL LABOR COST | K9: TOTAL
B10: (1) | C10: Operating Labor | E10: =E12*2 -> 730 | F10: MH | G10: 105 | I10: =E10*G10 -> 76650 | K10: =I10 -> 76650
B11: (2) | C11: Supervisory Labor | E11: =E12/2 -> 182.5 | F11: MH | G11: 125 | I11: =E11*G11 -> 22812.5 | K11: =I11 -> 22812.5
B12: (3) | C12: Maintenance Labor | E12: =365*E54/100 -> 365 | F12: MH | G12: 105 | I12: =E12*G12 -> 38325 | K12: 38325
B13: (4) | C13: Maintenance Materials | F13: LOT | H13: excluded in this estimate
B14: (5) | C14: Utilities
C15: (a) | D15: Urea Solution: | E15: =K45*(60)*2.2*2/2000 -> 14.65728 | F15: TON | G15: 356 | H15: =E15*G15 -> 5217.99168 | K15: =H15 -> 5217.99168
D16: (50% Urea solution and 2.2 moles needed per ton of NOX removed.)
C17: (b) | D17: Energy: | E17: =43*8760 -> 376680 | F17: kWh | G17: 0.18 | H17: =E17*G17 -> 67802.4 | K17: =H17 -> 67802.4
B19: (6) | C19: Annual RATA Testing | E19: 1 | F19: EA | G19: 10000 | H19: =E19*G19 -> 10000 | K19: =H19 -> 10000
B21: (7) | C21: Catalyst Replacement Costs (every 2 years)
D22: (per FuelTech)
C23: (a) | D23: Replacement of SCR Catalyst: % of total equipment cost | E23: 0.3 | F23: % total equip | G23: ='SCR TCI'!K33 -> 934250 | H23: =G23*E23 -> 280275 | K23: =H23*E29 -> 135398.5507
D24: (per MiraTech)
C25: (b) | D25: Replacement labor for SCR Catalyst | E25: 180 | F25: MH | G25: 105 | I25: =E25*G25 -> 18900 | K25: =I25*E29 -> 9130.434783
C26: (c) | D26: Transport cost direct to site (SCR catalyst) | E26: 0.13 | F26: % replacement | I26: =E26*H23 -> 36435.75 | K26: =I26*E29 -> 17601.81159
C27: (d) | D27: Transport cost for spent SCR catalyst | E27: 0.13 | F27: % replacement | I27: =E27*H23 -> 36435.75 | K27: =I27*E29 -> 17601.81159
B29: Sinking Fund Factor [see inputs below]: | E29: =($E$51/100)/(POWER(1+($E$51/100),($E$53)/($E$54/100))-1) -> 0.4830917874
B31: Total Direct Annual Costs (TDAC) | J31: TDAC = | K31: =SUM(K10:K27) -> 400540.5004
B33: INDIRECT ANNUAL COSTS
B34: (8) | C34: Overhead | F34: % | H34: excluded in this estimate | I34: =E34*G34 -> 0 | K34: =I34 -> 0
B35: (9) | C35: Administrative Charges and Insurance | E35: 0.03 | F35: % total capital | I35: =E35*'SCR TCI'!K65 -> 103035.75 | K35: =I35 -> 103035.75
C36: Capital Recovery Factor [see inputs below] | E36: =($E$51/100*POWER((1+($E$51/100)),$E$52))/((POWER(((1+$E$51/100)),$E$52))-1) -> 0.09439292574
B37: (10) | C37: Capital Recovery | J37: CRF * TCI = | K37: =E36*'SCR TCI'!K65 -> 324194.8633
B39: Total Indirect Annual Costs (TIAC) | J39: TIAC = | K39: =SUM(K34:K37) -> 427230.6133
B41: TOTAL ANNUALIZED COSTS (TAC) | J41: TAC = (TDAC) + (TIAC) = | K41: =K31+K39 -> 827771.1137
B43: Cost Effectiveness Summary
B45: TOTAL TONS NOx AVOIDED PER YEAR | J45: = | K45: =138.8*0.8 -> 111.04
B47: COST EFFECTIVENESS ($ PER TON AVOIDED) | J47: (TAC)/(TPY) = | K47: =K41/K45 -> 7454.711038
D50: Data Inputs for Capital Recovery Factor and Sinking Fund Factor:
D51: Annual Interest Rate (EPA OAQPS Control Cost Manual) | E51: 7 | F51: %
D52: Project Life (EPA OAQPS Control Cost Manual) | E52: 20 | F52: years
D53: Catalyst Life (from vendor) | E53: 2 | F53: years
D54: Asset Utilization | E54: 100 | F54: %

Sheet 5-22 (hidden)
A1: Table 5-22. Point Thomson Project - Proposed VOC BACT and Associated
A2: Emission Rate for Each Emission Unit Type
A4: Emission Unit | C4: Fuel | D4: CO BACT
A5: ID | B5: Description | D5: Description | E5: Emission Rate
A7: 101 and 102 | B7: ='[1]5-1'!B6 -> Solar Taurus Turbine | C7: Fuel Gas | D7: Catalytic Oxidation | E7: 25 ppm at ≥10 degrees F (in SoLoNOX mode)
A8: 103 and 104 | B8: Solar Taurus Turbine | C8: Dual Fuel-fired | D8: Catalytic Oxidation | E8: 100 ppm at ≥10 degrees F (in SoLoNOX mode)
A9: 105 | B9: Waste Incinerator | C9: ULSD | D9: Good Combustion Practices | E9: 1.0 g/hp-hr
A10: 106 through 109, 115, and 116 | B10: Distillate-fired Engines | C10: ULSD | D10: Good Combustion Practices | E10: 0.19 g/KW-hr
A11: 110 through 112 | B11: Fine Water Mist Supply and Firewater Pumps | C11: ULSD | D11: Good Combustion Practices | E11: 0.00247 lb/hp-hr
A12: 113 and 114 | B12: Flares | C12: Fuel Gas | D12: None | E12: 4.0 g/KW-hr (NOX and HC, combined)
A14: Notes:
A15: 1 Emissions are on a per unit basis.
A16: 2 ULSD fired engines have NSPS Subpart IIII VOC emission limits.
